[Event "Asian Amateur-ch Open 2022"]
[Site "Muscat"]
[Date "2022.10.04"]
[Round "8.14"]
[White "Takenouchi, Atsushi"]
[Black "Muhammad Shahzeb"]
[Result "1-0"]
[ECO "E18"]
[WhiteElo "1629"]
[BlackElo "1992"]
[Annotator "TA"]
[PlyCount "127"]
[EventDate "2022.09.29"]
[EventType "swiss"]
[EventCountry "OMN"]
[SourceTitle "playchess.com"]
[Source "ChessBase"]
[SourceQuality "1"]
[TimeControl "5400+30"]

{[%evp 15,127,20,22,15,15,11,10,7,15,0,0,0,0,-7,41,42,61,38,63,54,58,60,58,37,44,39,42,41,81,85,85,84,87,93,127,77,91,58,100,95,77,82,68,61,143,130,134,135,174,180,179,158,252,245,245,90,102,72,80,34,35,0,0,0,155,157,159,159,148,144,144,135,144,150,152,159,1056,1069,972,959,945,893,1016,777,1342,1270,1407,1019,1602,1348,29945,6698,29945,5686,29977,29979,29979,29980,29982,29977,29985,29986,29986,29981,29985,29982,29988,29989,29989,29990,29991,29992,29993,265]} 1. Nf3 {[%emt 0:00:02]} Nf6 {[%emt 0:00:05]} 2. c4 {[%emt 0:00:10]} e6 {[%emt 0:00:03]} 3. g3 {[%emt 0:00:04]} b6 {[%emt 0:00:06]} 4. Bg2 {[%emt 0:00:03]} Bb7 {[%emt 0:00:06]} 5. O-O {[%emt 0:00:06]} Be7 {[%emt 0:00:05]} 6. d4 {[%emt 0:00:21]} d6 {[%emt 0:00:36]} 7. Nc3 {[%emt 0:00:17]} Ne4 {[%emt 0:00:04]} 8. Bd2 {[%emt 0:00:20]} O-O {[%emt 0:00:21]} 9. Be1 {[%emt 0:00:21] E18: Queen's Indian: Old Main Line (4 g3 Bb7 5 Bg2 Be7 6 0-0 0-0 7 Nc3).} Nd7 {[%emt 0:00:27]} 10. Qc2 {[%emt 0:00:34]} Nxc3 {[%emt 0:01:22]} 11. Bxc3 {[%emt 0:00:48][%cal Of3g5] next Ng5! is good for White. The position is equal.} Nf6 {[%emt 0:00:20] [#]} 12. d5 $146 {[%emt 0:23:54]} ({Predecessor:} 12. b3 Be4 13. Qb2 Qc8 14. Bh3 c5 15. dxc5 bxc5 16. Nd2 Bc6 17. e4 Rd8 18. Rfe1 a5 19. Bg2 Ne8 20. Rad1 a4 21. Rb1 {½-½ (21) Schaefer,M (2198)-Guenther,T (2048) Bad Woerishofen 2017}) 12... exd5 {[%emt 0:14:11]} 13. Bxf6 {[%emt 0:00:18]} Bxf6 {[%emt 0:00:20]} (13... gxf6 14. Nd4 $16) 14. cxd5 {[%emt 0:00:16]} Qd7 {[%emt 0:01:41]} (14... Bxd5 $11 {feels stronger.} 15. Ng5 Bxg5 16. Bxd5 Rb8) 15. Rfd1 $14 {[%emt 0:02:22]} Qb5 {[%emt 0:11:23]} 16. Rab1 {[%emt 0:03:18]} (16. Qxc7 $6 Bxd5 17. Rd2 (17. Qxd6 Rad8 $17) 17... Qa5 $11) 16... c5 {[%emt 0:16:46]} (16... Bxd5 $2 17. Ng5 $1 {[%mdl 512]} g6 18. Rxd5 $18) 17. dxc6 $1 {[%emt 0:15:54]} Qxc6 {[%emt 0:00:56]} 18. Qxc6 {[%emt 0:15:02]} (18. Ne1 {with more complications.} Qd7 19. Bxb7 Qxb7 20. Rxd6 Rac8 21. Qd2) 18... Bxc6 {[%emt 0:00:23] This bishop pair is nice.} 19. Nd4 {[%emt 0:03:57]} Bxg2 {[%emt 0:03:35]} 20. Kxg2 {[%emt 0:00:15]} Rfc8 {[%emt 0:01:43] Prevents Nc6.} 21. e3 {[%emt 0:10:03]} Rc5 {[%emt 0:02:57]} 22. b4 {[%emt 0:08:54]} Rc4 {[%emt 0:10:38]} 23. Nb5 {[%emt 0:02:21]} Rc2 {[%emt 0:02:18]} 24. a3 {[%emt 0:02:11]} (24. Rxd6 Rxa2 25. Rb3 Ra1 $14) 24... Ra2 {[%emt 0:03:00]} 25. Rb3 {[%emt 0:02:05]} (25. Nxd6 Rxa3 26. b5 Kf8 $14) (25. Rxd6 $142 Rc8 26. Rf1 (26. Nxa7 Rcc2 $16)) 25... Be7 {[%emt 0:13:56]} 26. Rbd3 {[%emt 0:03:55]} g6 {[%emt 0:01:07]} 27. R3d2 {[%emt 0:04:23]} Rxd2 {[%emt 0:00:55]} 28. Rxd2 $16 {[%emt 0:00:02][%mdl 4096] Endgame KRB-KRN} a5 {[%emt 0:00:09]} 29. Nc7 {[%emt 0:00:55] White is more active.} (29. Nxd6 axb4 30. axb4 Rd8 $11) 29... Ra7 {[%emt 0:01:03]} ({Better is} 29... Rc8 $14 30. Nd5 Bd8) 30. Nd5 {[%emt 0:00:23]} axb4 {[%emt 0:01:34]} 31. axb4 {[%emt 0:00:58]} Bd8 {[%emt 0:06:16] [#]} 32. Rc2 $1 {[%emt 0:00:17] Hoping for Rc8.} Kg7 {[%emt 0:01:35]} 33. Rc6 {[%emt 0:00:26]} b5 {[%emt 0:01:02]} (33... Rd7 $16 {was called for.} 34. e4 (34. Nxb6 Bxb6 35. Rxb6 Kf6 $16) 34... f5) 34. Rxd6 $18 {[%emt 0:00:55]} Ra8 {[%emt 0:00:33]} 35. Nc3 $2 {[%emt 0:00:39]} (35. h4 $18 {has better winning chances.}) 35... Be7 $16 {[%emt 0:01:14]} 36. Rb6 {[%emt 0:00:58]} ({Inferior is} 36. Nxb5 Bxd6 37. Nxd6 Rd8 $17) 36... Bxb4 {[%emt 0:00:11]} 37. Nxb5 {[%emt 0:00:14]} ({White should play} 37. Nd5 $16 Be1 38. Kf1 (38. Rxb5 Ra2 $16)) 37... Ra2 $1 $14 {[%emt 0:00:14]} 38. Kf1 {[%emt 0:00:42] Against Be1} Ra1+ $1 {[%emt 0:00:36]} 39. Ke2 {[%emt 0:00:38]} g5 $2 {[%emt 0:00:43]} (39... Ra2+ $11 40. Kf1 Ra1+ 41. Kg2 Ra2) 40. Nd4 $16 {[%emt 0:00:28]} Ra2+ {[%emt 0:00:30]} 41. Kf1 {[%emt 0:00:35]} Bc5 {[%emt 0:00:02]} 42. Nf5+ {[%emt 0:00:13]} Kg8 {[%emt 0:00:46]} 43. Rb8+ {[%emt 0:00:28]} Bf8 {[%emt 0:00:06]} 44. g4 {[%emt 0:00:31]} Ra4 {[%emt 0:00:32]} 45. h3 {[%emt 0:00:14]} Rb4 $2 {[%emt 0:01:02] A mistake that costs the game.} (45... f6 $16 46. Rb7 Ra5) 46. Ne7+ $1 $18 {[%emt 0:00:41]} Kg7 {[%emt 0:00:30]} 47. Rxb4 {[%emt 0:00:10]} Bxe7 {[%emt 0:00:02] KR-KB} 48. Re4 {[%emt 0:00:07]} Bd6 {[%emt 0:06:26]} 49. Kg2 {[%emt 0:02:12]} Kg6 {[%emt 0:00:00]} 50. Ra4 {[%emt 0:00:00] White wants to mate with Ra6.} Bc7 {[%emt 0:00:00]} 51. Kf3 {[%emt 0:00:00]} f6 {[%emt 0:00:00]} 52. Ke4 {[%emt 0:00:00]} h5 {[%emt 0:00:00]} 53. Ra6 {[%emt 0:00:00]} (53. gxh5+ $142 Kh6 54. Kf5 Be5 55. h4 gxh4 56. Rxh4 Bc3 57. Rh1 Kh7 58. Rg1) 53... Be5 {[%emt 0:00:00]} 54. f4 {[%emt 0:00:00]} (54. gxh5+ $142 Kh6 55. Kf5 Kg7 56. Ra7+ Kh6 57. Rf7 Bb2 58. Rxf6+ Bxf6 59. Kxf6) 54... gxf4 {[%emt 0:00:00]} 55. exf4 {[%emt 0:00:00][%cal Be3f4,Bf4f5,Bf5f6][%mdl 32] White mates.} Bc3 {[%emt 0:03:30]} 56. g5 {[%emt 0:03:30]} h4 {[%emt 0:00:00]} 57. gxf6 {[%emt 0:00:00]} Bxf6 {[%emt 0:00:00]} 58. f5+ {[%emt 0:00:00]} Kg5 {[%emt 0:00:00]} 59. Ra2 {[%emt 0:00:00]} Bd8 {[%emt 0:00:00]} 60. Rg2+ {[%emt 0:00:00]} Kh5 {[%emt 0:00:00]} 61. Ke5 {[%emt 0:00:00]} Bc7+ {[%emt 0:00:00]} 62. Ke6 {[%emt 0:00:00]} Bg3 {[%emt 0:00:00]} 63. f6 {[%emt 0:00:06]} Kg6 {[%emt 0:00:00]} 64. Kd5 $2 {[%emt 0:03:54] Weighted Error Value: White=0.15 (very precise) /Black=0.44} (64. f7 {mates} Kg7 65. Ke7 Kh7 66. Kf6 Be1 67. f8=Q Bc3+ 68. Kf5 Bh8 69. Qg8+ Kh6 70. Qxh8#) 1-0

[Event "Asian Amateur-ch Open 2022"]
[Site "Muscat"]
[Date "2022.10.04"]
[Round "8.15"]
[White "Khalili, Mehdi"]
[Black "Maasarani, Mahmoud"]
[Result "0-1"]
[ECO "A48"]
[WhiteElo "1575"]
[BlackElo "1991"]
[Annotator "TA"]
[PlyCount "154"]
[EventDate "2022.09.29"]
[EventType "swiss"]
[EventCountry "OMN"]
[SourceTitle "playchess.com"]
[Source "ChessBase"]
[SourceQuality "1"]
[TimeControl "5400+30"]

{[%evp 16,154,22,0,0,-28,20,-33,-1,-41,5,-36,-30,-27,-47,-35,-9,-16,-9,-30,-25,-11,-9,-85,-62,-90,-90,-98,-54,-72,-59,-63,-60,-76,-41,-76,-67,-73,-71,-89,-87,-104,-14,-14,0,-94,-2,0,-2,-1,-6,-56,6,0,88,-167,-159,-153,-159,-165,-148,-160,-156,-234,-231,-282,-282,-422,-424,-610,-587,-548,-532,-554,-380,-404,-356,-383,-359,-368,-323,-312,-312,-364,-364,-383,-382,-347,-309,-307,-298,-306,-298,-291,-19,-20,-16,-16,-16,-16,-16,-16,-16,-16,-16,-33,-16,-16,-16,-72,-51,-128,-128,-227,-81,-81,-81,-29989,-29990,-29990,-29991,-29991,-29992,-29992,-29990,-29990,-29991,-29991,-29992,-29993,-29994,-29994,-29994,-29994,-29991,-29991,-29992,-29992,-29993,-29993,-383]} 1. d4 {[%emt 0:00:30]} Nf6 {[%emt 0:02:23]} 2. Nf3 {[%emt 0:00:33]} g6 {[%emt 0:00:09]} 3. Bf4 {[%emt 0:00:51]} Bg7 {[%emt 0:00:06]} 4. e3 {[%emt 0:00:15]} O-O {[%emt 0:00:13]} 5. Bd3 {[%emt 0:00:38]} c5 {[%emt 0:00:37]} 6. c3 {[%emt 0:00:02]} cxd4 {[%emt 0:00:17]} 7. exd4 {[%emt 0:00:40]} d6 {[%emt 0:00:07]} 8. O-O {[%emt 0:01:40]} Nc6 {[%emt 0:01:38]} 9. h3 {[%emt 0:10:47]} Re8 {[%emt 0:01:30] A48: 1 d4 Nf6 2 Nf3 g6: Torre, London and Colle Systems.} 10. Bh2 {[%emt 0:24:07]} a6 {[%emt 0:03:15] [#]} (10... e5 $142 11. dxe5 dxe5) 11. Na3 $146 {[%emt 0:08:30]} ({Better is} 11. Re1 $11) ({Predecessor:} 11. Re1 b5 12. Nbd2 Qb6 13. Qb3 Bb7 14. a4 b4 15. Nc4 Qd8 16. cxb4 Nd7 17. d5 {1-0 (54) Pucelj,M (1927)-Lazarevic,D (1697) Ljubljana 2006}) 11... b5 {[%emt 0:03:44] Black is slightly better.} (11... e5 $5 {[%cal Re5e4]} 12. Bc2 exd4 $11) 12. Nc2 {[%emt 0:06:12]} Bb7 {[%emt 0:00:19]} (12... e5 $15 13. Be2 Qb6) 13. Ne3 {[%emt 0:06:09]} e5 {[%emt 0:05:43]} 14. dxe5 {[%emt 0:03:24]} dxe5 {[%emt 0:00:01] Hoping for ...e4.} 15. Be2 {[%emt 0:04:19]} e4 {[%emt 0:06:19]} 16. Nd4 {[%emt 0:10:14]} Nxd4 {[%emt 0:01:57]} 17. cxd4 {[%emt 0:06:47]} Nd5 {[%emt 0:00:54]} 18. a4 {[%emt 0:02:41]} Qg5 {[%emt 0:43:14]} 19. Nxd5 {[%emt 0:04:55]} (19. h4 $11 Qxh4 20. axb5 axb5 21. Qb3 Rxa1 22. Rxa1) 19... Qxd5 $17 {[%emt 0:00:03]} (19... Bxd5 {looks sharper.} 20. axb5 axb5 21. Rxa8 Rxa8 22. Bg3 e3) 20. axb5 {[%emt 0:02:02]} axb5 {[%emt 0:00:20]} (20... e3 {keeps more tension.} 21. f3 axb5 22. Rxa8 Rxa8 23. Bf4 Bxd4 24. Qd3 Bb6) 21. Rxa8 {[%emt 0:01:16]} Bxa8 {[%emt 0:02:32]} 22. Be5 {[%emt 0:03:13]} Bxe5 {[%emt 0:02:09]} 23. dxe5 {[%emt 0:00:03]} Qxe5 {[%emt 0:00:23]} 24. Qb3 {[%emt 0:00:10]} Rb8 {[%emt 0:00:19]} 25. Rd1 {[%emt 0:00:41]} Bc6 {[%emt 0:01:04] Against Rd7} 26. Rc1 {[%emt 0:01:05]} Bd7 {[%emt 0:03:56]} 27. Qb4 {[%emt 0:00:29]} e3 {[%emt 0:04:37]} 28. f4 {[%emt 0:00:34]} Qe6 {[%emt 0:04:13]} (28... Qf6 $1 $17 29. Kh2 Ra8) 29. Qd4 $11 {[%emt 0:01:13] Black must now prevent Bg4.} Rc8 {[%emt 0:09:56]} 30. Re1 {[%emt 0:00:51]} (30. Rxc8+ $11 {remains equal.} Bxc8 31. Bxb5 (31. Qd8+ Kg7 $11)) 30... Rc2 {[%emt 0:00:45]} ({Black should play} 30... h5 $17) 31. Bg4 $1 {[%emt 0:00:26]} Qc6 {[%emt 0:00:01][%csl Gc2][%cal Rc6g2] Really sharp!} 32. Bf3 {[%emt 0:00:10]} Qc7 $36 {[%emt 0:01:14][%mdl 2048] White is under pressure.} 33. Rxe3 {[%emt 0:00:23]} (33. Qxe3 $11 Be6 34. Re2) 33... Be6 {[%emt 0:00:27]} (33... Rc4 $1 $15 34. Qe5 (34. Rc3 Rxd4 35. Rxc7 Be6 $17) 34... Qxe5 35. fxe5 Rc5) 34. Rd3 {[%emt 0:01:01]} h5 {[%emt 0:00:17]} (34... Rc1+ $11 35. Kf2 Rc2+ 36. Ke3 Qe7 37. Qd8+ Qxd8 38. Rxd8+ Kg7) 35. Qd8+ $2 {[%emt 0:00:36][%mdl 8192]} (35. Qf6 $1 $16 {keeps the pressure on.} Qa7+ 36. Kh2) 35... Qxd8 $19 36. Rxd8+ {[%emt 0:00:02][%mdl 4096] Endgame KRB-KRB} Kg7 {[%emt 0:00:02]} 37. b3 {[%emt 0:00:52]} Rc3 {[%emt 0:00:01]} 38. Rb8 {[%emt 0:00:34]} Rxb3 {[%emt 0:00:02]} 39. Bc6 {[%emt 0:00:30]} (39. Kf2 $17 {keeps fighting.}) 39... b4 {[%emt 0:00:04]} 40. Bf3 {[%emt 0:00:23] [#]} Bxh3 $1 {[%emt 0:01:01][%mdl 512] ...Be6 is the strong threat.} 41. Rb7 {[%emt 0:00:35]} (41. Bd5 $142 Rb1+ 42. Kf2 Rb2+ 43. Ke3 Bxg2 44. Bxg2 Rxg2 45. Rxb4) (41. Kf2 Rb2+) 41... Be6 {[%emt 0:00:12]} 42. f5 {[%emt 0:00:02]} (42. Kf2 $142) 42... Bxf5 {[%emt 0:01:13]} 43. Bd5 {[%emt 0:00:06]} Rb1+ {[%emt 0:00:20]} 44. Kh2 {[%emt 0:00:01]} Bc2 {[%emt 0:00:43]} 45. Bxf7 {[%emt 0:00:24]} Kh6 {[%emt 0:00:06]} 46. Bd5 {[%emt 0:00:08]} b3 {[%emt 0:00:11]} 47. Rb6 {[%emt 0:00:17]} Rb2 {[%emt 0:00:35]} 48. Kg3 {[%emt 0:00:14]} Kg5 {[%emt 0:00:13]} 49. Rb4 {[%emt 0:00:54]} Rb1 {[%emt 0:00:05]} 50. Bf3 {[%emt 0:00:25]} Re1 {[%emt 0:00:20]} 51. Rb5+ {[%emt 0:00:11]} Kh6 {[%emt 0:00:02]} 52. Rb6 {[%emt 0:00:29]} Rh1 {[%emt 0:00:29]} 53. Rb4 {[%emt 0:00:10]} h4+ {[%emt 0:01:00]} 54. Kf2 {[%emt 0:00:14]} h3 $2 {[%emt 0:00:41]} ({Black should try} 54... Kg5 $19 {Strongly threatening ...Rb1.} 55. Ke3 Rb1 56. Rg4+ Kf6 57. Rxh4 Re1+ 58. Kd2 b2) 55. gxh3 $11 {[%emt 0:01:35]} Rxh3 {[%emt 0:00:04] And now ...Kg5 would win.} 56. Kg2 $1 {[%emt 0:01:23]} Bf5 {[%emt 0:00:56]} 57. Rxb3 {[%emt 0:00:11]} Rh4 {[%emt 0:00:11]} 58. Rb8 {[%emt 0:00:11]} Kg5 {[%emt 0:00:30]} 59. Rb5 {[%emt 0:00:35]} Ra4 {[%emt 0:00:10]} 60. Rb2 {[%emt 0:00:19]} Kf4 {[%emt 0:00:02]} 61. Kf2 {[%emt 0:01:33]} g5 {[%emt 0:00:11]} 62. Bg2 {[%emt 0:00:12]} (62. Bc6 $11 {keeps the balance.} Rc4 63. Bf3) 62... g4 {[%emt 0:00:17]} 63. Bf1 {[%emt 0:00:36]} (63. Bb7 $15) 63... Be4 $17 {[%emt 0:00:17]} 64. Rd2 {[%emt 0:00:35] [#]} (64. Kg1 $17 {was the only defense.}) 64... g3+ {[%emt 0:00:25]} (64... Ra1 $1 $19 {[%cal Ra1c1] aiming for ...Rc1.} 65. Kg1 Rc1 66. Rf2+ Bf3) 65. Kg1 {[%emt 0:00:24] [#]} Ra1 $1 {[%emt 0:00:11] Threatens to win with ...Bf5.} 66. Rb2 $2 {[%emt 0:00:15][%mdl 8192]} (66. Rd8 $17) 66... Bd3 $1 {[%emt 0:00:52] Black mates.} 67. Rb8 {[%emt 0:01:21]} Rxf1+ {[%emt 0:00:11] KRB-KR} 68. Kg2 {[%emt 0:00:01]} Rf2+ {[%emt 0:00:04]} 69. Kg1 {[%emt 0:00:10]} Ra2 {[%emt 0:00:12]} 70. Rf8+ {[%emt 0:00:36]} Bf5 {[%emt 0:00:45]} 71. Rf7 {[%emt 0:00:02]} Kg4 {[%emt 0:00:19]} 72. Re7 {[%emt 0:00:45]} Kh3 {[%emt 0:00:25]} 73. Re1 {[%emt 0:00:28]} Rb2 {[%emt 0:01:02]} 74. Rd1 {[%emt 0:00:26]} Rb1 {[%emt 0:00:02]} 75. Rxb1 {[%emt 0:00:40]} Bxb1 {[%emt 0:00:02]} 76. Kh1 {[%emt 0:00:03]} g2+ {[%emt 0:00:24]} 77. Kg1 {[%emt 0:00:02]} Bc2 $2 {[%emt 0:00:09] Weighted Error Value: White=0.30/Black=0.30} (77... Bg6 {mates} 78. Kf2 Kh2 79. Ke2 g1=Q 80. Kd2 Qd4+ 81. Ke2 Bh5+ 82. Ke1 Qe3+ 83. Kf1 Qg1#) 0-1

[Event "Asian Amateur-ch Open 2022"]
[Site "Muscat"]
[Date "2022.10.04"]
[Round "8.16"]
[White "Abdivaliev, Daniial"]
[Black "Owlad, Ehsan"]
[Result "0-1"]
[ECO "C02"]
[WhiteElo "1528"]
[BlackElo "1962"]
[Annotator "TA"]
[PlyCount "128"]
[EventDate "2022.09.29"]
[EventType "swiss"]
[EventCountry "OMN"]
[SourceTitle "playchess.com"]
[Source "ChessBase"]
[SourceQuality "1"]
[TimeControl "5400+30"]

{[%evp 18,128,-20,-27,7,7,19,-29,-48,-47,-37,-45,0,-129,-91,-95,-93,-192,-172,-183,-165,-186,-190,-195,-192,-191,-168,-190,-170,-145,-163,-147,-140,-179,-70,-65,-56,-127,-118,-114,-39,-119,0,0,0,0,65,67,67,57,49,21,55,0,0,0,0,0,0,0,0,0,0,0,0,0,0,-45,-72,-114,0,-12841,-12842,-12842,-12843,-12843,-12843,-12844,-12844,-12845,-12845,-12845,-12846,-12846,-12847,-12849,-12847,-12849,-12848,-12849,0,-12849,-12849,-27999,-27999,-27999,-27999,-27999,-27999,-27999,-27999,-27999,-27999,-27997,-27999,-27997,-27999,-27997,-27997,-27998,-27997,-27998,-27998]} 1. e4 {[%emt 0:03:20]} e6 {[%emt 0:00:13]} 2. d4 {[%emt 0:00:12]} d5 {[%emt 0:00:07]} 3. e5 {[%emt 0:00:03]} c5 {[%emt 0:00:29]} 4. c3 {[%emt 0:00:03]} Nc6 {[%emt 0:00:29]} 5. Nf3 {[%emt 0:00:04]} Nge7 {[%emt 0:02:32]} 6. a3 {[%emt 0:02:13]} Nf5 {[%emt 0:01:24]} 7. b4 {[%emt 0:01:21]} cxd4 {[%emt 0:00:57]} 8. cxd4 {[%emt 0:00:07]} Bd7 {[%emt 0:00:38]} 9. Be2 {[%emt 0:01:55]} Qb6 {[%emt 0:01:21]} 10. Be3 {[%emt 0:00:06]} a5 {[%emt 0:01:19] C02: French: Advance Variation.} 11. b5 {[%emt 0:00:21]} Nce7 {[%emt 0:00:24][%cal Bc6e7,Be7f5,Bf5h4,Bh4f3][%mdl 32]} 12. a4 {[%emt 0:00:12]} (12. Bc1 $142) 12... Nxe3 $11 {[%emt 0:00:08] Black has an edge.} 13. fxe3 {[%emt 0:00:15]} Nf5 {[%emt 0:00:16]} 14. Qd3 {[%emt 0:04:07]} Bb4+ {[%emt 0:01:22] [#]} 15. Nfd2 $146 {[%emt 0:00:20]} (15. Nc3 $1 $11 {remains equal.}) ({Predecessor:} 15. Nbd2 Rc8 16. O-O Rc3 17. Qb1 Rxe3 18. Rf2 Bc3 {0-1 (18) Wilson,V-Lindholm,J (1955) Finland 2016}) 15... O-O {[%emt 0:02:54] Black is more active.} 16. O-O {[%emt 0:07:28]} Rac8 {[%emt 0:00:53] Inhibits Nc3.} 17. g4 {[%emt 0:03:00]} (17. Bg4 $17) 17... Nh4 $19 {[%emt 0:01:13]} 18. Nf3 {[%emt 0:01:33]} Qd8 {[%emt 0:01:06]} 19. Ra2 {[%emt 0:04:53]} Nxf3+ {[%emt 0:01:07]} 20. Bxf3 {[%emt 0:00:48]} f6 {[%emt 0:01:57]} 21. exf6 {[%emt 0:02:49]} Rxf6 {[%emt 0:01:13]} ({Not} 21... gxf6 22. e4 $15) ({Weaker is} 21... Qxf6 22. Rc2 $17) 22. Rc2 {[%emt 0:04:41]} Be8 {[%emt 0:01:51]} 23. Rxc8 {[%emt 0:07:44]} Qxc8 {[%emt 0:00:11]} 24. Nd2 {[%emt 0:07:11]} Bg6 {[%emt 0:01:21]} 25. e4 {[%emt 0:05:02]} Bxd2 {[%emt 0:00:58]} (25... b6 $19 {aiming for ...Qc7.} 26. Bg2 Qc7) 26. Qxd2 $15 {[%emt 0:00:06]} dxe4 {[%emt 0:00:59]} 27. Rc1 {[%emt 0:00:30]} (27. Be2 $15) 27... Qd8 $1 $17 {[%emt 0:01:40]} 28. Bg2 {[%emt 0:00:50]} h6 {[%emt 0:01:31]} (28... e5 $1 $17 29. d5 h6) 29. Rc5 {[%emt 0:03:09]} (29. Qe3 $15) 29... e5 {[%emt 0:06:22]} (29... b6 $17 30. Rc6 Be8) 30. Rxe5 $11 {[%emt 0:00:26]} Rd6 {[%emt 0:00:37]} 31. Bxe4 {[%emt 0:00:47]} Bf7 {[%emt 0:01:37]} (31... Qc8 $11 32. h3 Qc4) 32. d5 $14 {[%emt 0:05:01]} (32. Bxb7 $2 Rxd4 33. Qe3 Rxg4+ 34. Kh1 Rxa4 $19) 32... Qf6 {[%emt 0:00:57]} 33. Qd4 {[%emt 0:01:07][%cal Od4e3]} Rd7 {[%emt 0:03:14]} 34. Qc3 {[%emt 0:07:24]} g6 {[%emt 0:02:58]} 35. Qc8+ {[%emt 0:07:58]} ({But not} 35. Re8+ Kg7 36. Qxf6+ Kxf6 $11) ({White should try} 35. Kg2 $14) 35... Kg7 $11 {[%emt 0:07:21]} 36. Qxd7 {[%emt 0:08:48]} Qxe5 {[%emt 0:00:02][%mdl 4096] Endgame KQB-KQB} 37. Bf3 {[%emt 0:00:50]} Qa1+ {[%emt 0:03:00]} 38. Kf2 {[%emt 0:00:51]} Qxa4 {[%emt 0:00:37]} 39. Qxb7 {[%emt 0:12:25]} Qd4+ {[%emt 0:00:30]} 40. Kg2 {[%emt 0:00:00]} a4 {[%emt 0:00:22]} 41. Qa8 {[%emt 0:00:00]} Qb2+ {[%emt 0:00:53]} 42. Kh3 {[%emt 0:00:00]} (42. Kg3 $5 {[%cal Ra8a4]} Qxb5 43. d6 $11) 42... Qxb5 {[%emt 0:01:53] And now ...g5 would win.} 43. d6 {[%emt 0:00:00] [#]} Qd3 {[%emt 0:03:28]} (43... h5 $1 $17 {[%cal Rh5g4] White must now prevent ...hxg4+.} 44. gxh5 Qf1+ 45. Kg3 Qg1+ 46. Kf4 g5+ 47. Ke4 Qb1+ 48. Ke5 Qa1+ 49. Ke4 Qb1+ 50. Ke5 Qb2+ 51. Ke4 Qb4+ 52. Ke3 Qb6+ 53. Kd2 Qxd6+ 54. Ke1 Qb4+ 55. Kf2 Qd4+ 56. Kg2 g4) 44. Qe4 {[%emt 0:00:00][%mdl 8192] Black keeps a firm grip on the game.} (44. Kg2 $11) 44... Qxe4 $19 {[%emt 0:01:03]} 45. Bxe4 {[%emt 0:00:00] KB-KB} Kf6 {[%emt 0:00:13]} 46. Bb1 {[%emt 0:00:00]} a3 {[%emt 0:00:21]} 47. Kg3 {[%emt 0:01:32]} a2 {[%emt 0:00:39]} 48. Bxa2 {[%emt 0:00:02]} Bxa2 {[%emt 0:00:11] KB-K3P} 49. Kf4 {[%emt 0:00:20]} g5+ {[%emt 0:00:36]} 50. Ke4 {[%emt 0:00:20]} Be6 {[%emt 0:00:25]} 51. h3 {[%emt 0:00:16]} Bc8 {[%emt 0:00:28]} 52. Kf3 {[%emt 0:01:11]} Ke6 {[%emt 0:00:29]} 53. Kg3 {[%emt 0:01:00]} Kf6 $2 {[%emt 0:01:07]} ({Better is} 53... Kxd6 $19 54. Kf3 Ke5) 54. h4 $2 {[%emt 0:00:36][%mdl 8192]} (54. Kf3 $11 Ke5 55. Kf2) 54... gxh4+ {[%emt 0:00:59]} 55. Kxh4 {[%emt 0:00:32] [#] KB-KPP} Kg6 $1 {[%emt 0:00:12] Black mates.} 56. Kh3 {[%emt 0:00:47]} Kg5 {[%emt 0:00:26]} 57. Kg3 {[%emt 0:00:13]} Bxg4 {[%emt 0:00:25] KB-KP} 58. Kg2 {[%emt 0:00:31]} h5 {[%emt 0:00:23][%cal Bh6h5,Bh5h4,Bh4h3][%mdl 32]} 59. Kg3 {[%emt 0:00:18]} h4+ {[%emt 0:00:30]} 60. Kg2 {[%emt 0:00:13]} Bd7 {[%emt 0:00:23]} 61. Kh2 {[%emt 0:01:22]} Kg4 {[%emt 0:00:47]} 62. Kg2 {[%emt 0:02:17]} h3+ {[%emt 0:00:33]} 63. Kh2 {[%emt 0:00:00]} Kh4 {[%emt 0:00:11]} 64. Kg1 {[%emt 0:00:00]} Kg3 {[%emt 0:00:16] Weighted Error Value: White=0.51/Black=0.23 (precise)} 0-1